fUSD/lending_fUSD_20241028
["ID","MTS","AMOUNT","RATE_DAILY","PERIOD"]
[340912906,1730074231938,-156.58,0.00015342,2]
[340912907,1730074231948,-185.82,0.00015342,2]
[340912908,1730074231957,-283.0,0.00019,2]
[340912909,1730074231966,-158.46,0.00028913,30]
[340912910,1730074231976,-431.992195,0.00033587,2]
[340912911,1730074231985,-636.93,0.00033757,2]
[340912912,1730074231994,-288.21,0.00034533,2]
[340912913,1730074232003,-1193.6296244,0.00034967,4]
[340912914,1730074232013,-4627.94,0.00034967,10]
[340912915,1730074232021,-999.99,0.00034967,2]
[340912916,1730074232030,-331.82,0.00034967,2]
[340912917,1730074232039,-519.67,0.00034967,2]
[340912918,1730074232048,-250.0,0.00035216,120]
[340912919,1730074232058,-174.36,0.00035238,120]
[340912920,1730074232067,-279.47,0.00035271,2]
[340912921,1730074232076,-477.03,0.00035281,2]
[340912922,1730074232085,-202.76802444,0.00035295,2]
[340912923,1730074232096,-2900.40197556,0.00035295,2]
[340912924,1730074232104,-200.0,0.00035299,2]
[340912925,1730074232113,-1051.8,0.00035348,2]
[340912926,1730074232122,-250.0,0.0003549,2]
[340912927,1730074232131,-2059.82,0.00035497,2]
[340912928,1730074232140,-1270.34,0.00035666,2]
[340912929,1730074232149,-1160.0,0.00035683,2]
[340912930,1730074232158,-1026.63802195,0.00035684,2]
[340912931,1730074232167,-3888.6079662,0.00035685,2]
[340912932,1730074232178,-671.68,0.00035685,2]
[340912933,1730074232189,-1531.29710236,0.00035685,2]
[340912934,1730074232199,-1200.0,0.00035685,2]
[340912935,1730074232220,-4072.47493144,0.00035685,2]
[340912936,1730074232229,-289.47,0.00035685,2]
[340912937,1730074232241,-5112.05,0.00035685,2]
[340912938,1730074232250,-170.091,0.00035685,2]
[340912939,1730074232262,-170.091,0.00035685,2]
[340912940,1730074232271,-170.091,0.00035685,2]
[340912941,1730074232280,-170.091,0.00035685,2]
[340912942,1730074232291,-170.091,0.00035685,2]
[340912943,1730074232302,-10334.78063365,0.00035691,2]
[340912944,1730074232311,-23890.0,0.00035701,2]
[340912945,1730074232320,-150.99,0.00035701,2]
[340912946,1730074232329,-150.0,0.00035703,2]
[340912947,1730074232338,-1951.14,0.00035731,2]
[340912948,1730074232347,-333.94,0.00035762,2]
[340912949,1730074232356,-257.75,0.00035834,2]
[340912950,1730074232365,-250.0,0.00035834,2]
[340912951,1730074232374,-288.21,0.00035896,2]
[340912952,1730074232383,-174.37,0.00035941,120]
[340912953,1730074232393,-170.85,0.00035971,2]
[340912954,1730074232402,-636.93,0.00036021,2]
[340912955,1730074232410,-158.46,0.00036141,30]
[340912956,1730074232420,-24792.0,0.00036503,2]
[340912957,1730074232429,-150.0,0.00036633,2]
[340912958,1730074232438,-658.43,0.00036646,2]
[340912959,1730074232447,-444.206,0.00036697,46]
[340912960,1730074232456,-592.81,0.00036698,2]
[340912961,1730074232465,-1000.0,0.00036708,2]
[340912962,1730074232474,-167.97,0.00037009,2]
[340912963,1730074232483,-288.21,0.00037259,2]
[340912964,1730074232492,-220.22588844,0.00037493,2]
[340912965,1730074232501,-10127.31494374,0.000376,2]
[340912966,1730074232510,-4240.86637384,0.000376,2]
[340912967,1730074232522,-2469.22663109,0.000376,2]
[340912968,1730074232531,-220.22588844,0.00037688,2]
[340912969,1730074232540,-226.7842,0.0003779,2]
[340912970,1730074232549,-3199.4286,0.0003779,2]
[340912971,1730074232558,-2500.0,0.0003779,2]
[340912972,1730074232570,-639.46925772,0.00037808,2]
[340912973,1730074232607,-150.49074228,0.00037808,2]
[340912974,1730074232616,-166.17475041,0.0003787,2]
[340912975,1730074232625,-500.0,0.00037873,5]
[340912976,1730074232633,-500.0,0.00037873,2]
[340912977,1730074232642,-30.36838996,0.0003789,2]
[340912979,1730074237893,-1892.27757239,0.0003789,2]
[340912980,1730074238155,-12724.38090403,0.0003789,2]
[340912981,1730074238272,-55637.08407926,0.0003789,2]
[340912982,1730074238285,-865.1330739,0.0003789,2]
[340913117,1730074239830,-446.67935363,0.0003789,2]
[340913119,1730074239840,-88086.28148046,0.0003789,2]
[340913121,1730074239849,-200.0,0.0003797,2]
[340913123,1730074239858,-500.0,0.00037973,5]
[340913125,1730074239867,-6877.55666977,0.0003798,8]
[340913127,1730074239876,-605.6585883,0.0003799,8]
[340913129,1730074239891,-1403.37265,0.0003799,8]
[340913131,1730074239901,-616.525332,0.0003799,8]
[340913136,1730074239937,-3121.73135063,0.0003799,8]
[340913138,1730074239948,-1469.73969758,0.0003799,8]
[340913148,1730074240045,-2405.20079998,0.0003799,8]
[340913155,1730074240099,-400.0,0.0003799,8]
[340913157,1730074240109,-713.41359874,0.0003799,8]
[340913163,1730074240154,-9434.6050673,0.0003799,8]
[340913457,1730074242872,-437.39622639,0.0003787,15]
[340913475,1730074242982,-1292.21978105,0.0003787,15]
[340913477,1730074242991,-10223.2443277,0.0003799,8]
[340913493,1730074243139,-520.2443575,0.0003799,8]
[340913499,1730074243192,-3186.91700394,0.0003799,8]
[340913501,1730074243204,-1406.03562896,0.0003799,8]
[340913757,1730074245958,-1624.63615956,0.0003799,8]
[340913773,1730074246116,-79680.72757601,0.0003799,8]
[340916111,1730075108783,118058.13078993,0.00015,2]
[340916114,1730075216744,5833.21677459,0.000145,2]
[340916115,1730075261417,150.0,0.000151,2]
[340916116,1730075268592,150.0,0.000151,2]
[340916117,1730075270110,150.0,0.000151,2]
[340916118,1730075271311,150.0,0.000151,2]
[340916119,1730075272785,150.0,0.000151,2]
[340916120,1730075274360,150.0,0.000151,2]
[340916121,1730075275297,150.0,0.000151,2]
[340916122,1730075276310,150.0,0.000151,2]
[340916123,1730075277520,150.0,0.000151,2]
[340916124,1730075282935,24758.65243548,0.00015,2]
[340916136,1730075431164,-1143.522785,0.00014318,2]
[340916137,1730075431189,-6112.31069682,0.0001439,2]
[340916138,1730075431217,-150.0,0.00014591,2]
[340916139,1730075431242,-165321.75928241,0.00015,2]
[340916140,1730075431268,-1598.06514758,0.00015242,2]
[340916155,1730075432060,-155.75,0.00015342,2]
[340916156,1730075432070,-271.21755893,0.00015342,2]
[340916157,1730075432081,-1010.56276595,0.00015342,2]
[340916168,1730075440060,-685.7574252,0.00015342,2]
[340916169,1730075440071,-1335.895,0.00015342,2]
[340916170,1730075440083,-663.0019785,0.00015342,2]
[340916171,1730075440227,-30955.64256754,0.00015342,2]
[340916172,1730075440237,-1598.06514756,0.0001842,2]
[340916173,1730075440247,-219.0,0.000191,2]
[340916174,1730075440256,-47489.25043343,0.00021,4]
[340916175,1730075440265,-1598.06514756,0.00021597,2]
[340916176,1730075440275,-349.38950403,0.00021989,2]
[340916177,1730075440284,-17573.1448399,0.0002199,4]
[340916178,1730075440294,-9973.68,0.0002199,2]
[340916179,1730075440303,-94885.95831286,0.00022,2]
[340916180,1730075440313,-166.17475039,0.000231,2]
[340916181,1730075440322,-20120.42716189,0.000232,2]
[340916182,1730075440393,-1021.485634,0.000232,2]
[340916211,1730075443163,-493.5186448,0.000232,2]
[340916212,1730075443174,-269.18099872,0.000232,2]
[340916213,1730075443273,-765.5489673,0.000232,2]
[340916214,1730075443386,-1747.80617679,0.000232,2]
[340916216,1730075443396,-464.15382921,0.00023922,2]
[340916219,1730075443409,-1111.46892119,0.00023922,2]
[340916220,1730075443422,-24326.422838,0.00023922,2]
[340916221,1730075443434,-1369.6500584,0.00023922,2]
[340916223,1730075446216,-102994.29163487,0.00023922,2]
[340916226,1730075464372,150.0,0.00014597,2]
[340916227,1730075760680,1000.0,0.00043944,30]
[340916228,1730075770314,1000.0,0.00043944,30]
[340916229,1730075780006,1000.0,0.00043944,30]
[340916231,1730075854786,1000.0,0.00043944,30]
[340916232,1730075855706,1000.0,0.00043944,30]
[340916233,1730075856356,1000.0,0.00043944,30]
[340916234,1730075857081,1000.0,0.00043944,30]
[340916235,1730075857726,1000.0,0.00043944,30]
[340916236,1730075858342,1000.0,0.00043944,30]
[340916237,1730075871871,287.92,0.00043944,30]
[340916238,1730075890133,943.49,0.00043944,30]
[340916239,1730075890389,943.49,0.00043944,30]
[340916240,1730075890668,943.49,0.00043944,30]
[340916241,1730075891102,943.49,0.00043944,30]
[340916242,1730075891234,943.49,0.00043944,30]
[340916243,1730075891500,943.49,0.00043944,30]
[340916244,1730075891761,943.49,0.00043944,30]
[340916245,1730075892015,943.49,0.00043944,30]
[340916246,1730075892273,943.49,0.00043944,30]
[340916247,1730075892569,943.49,0.00043944,30]
[340916248,1730075892887,943.49,0.00043944,30]
[340916249,1730075893151,943.49,0.00043944,30]
[340916250,1730075893408,943.49,0.00043944,30]
[340916251,1730075893665,943.49,0.00043944,30]
[340916252,1730075893932,943.49,0.00043944,30]
[340916253,1730075894185,943.49,0.00043944,30]
[340916254,1730075894473,943.49,0.00043944,30]
[340916255,1730075894726,943.49,0.00043944,30]
[340916256,1730075895123,943.49,0.00043944,30]
[340916257,1730075895266,943.49,0.00043944,30]
[340916258,1730075895527,943.49,0.00043944,30]
[340916259,1730075895809,943.49,0.00043944,30]
[340916260,1730075896235,943.49,0.00043944,30]
[340916261,1730075896489,943.49,0.00043944,30]
[340916262,1730075899842,500.0,0.00043944,30]
[340916263,1730075900105,500.0,0.00043944,30]
[340916264,1730075900380,500.0,0.00043944,30]
[340916265,1730075900654,500.0,0.00043944,30]
[340916266,1730075900946,500.0,0.00043944,30]
[340916267,1730075901177,500.0,0.00043944,30]
[340916268,1730075901257,500.0,0.00043944,30]
[340916269,1730075901472,500.0,0.00043944,30]
[340916270,1730075901585,500.0,0.00043944,30]
[340916271,1730075901732,500.0,0.00043944,30]
[340916272,1730075901866,500.0,0.00043944,30]
[340916273,1730075902003,500.0,0.00043944,30]
[340916274,1730075902137,500.0,0.00043944,30]
[340916275,1730075902284,500.0,0.00043944,30]
[340916276,1730075902398,500.0,0.00043944,30]
[340916277,1730075902595,500.0,0.00043944,30]
[340916278,1730075902652,333.90561073,0.00043944,30]
[340916279,1730075902858,500.0,0.00043944,30]
[340916280,1730075903107,500.0,0.00043944,30]
[340916281,1730075903350,500.0,0.00043944,30]
[340916282,1730075903599,500.0,0.00043944,30]
[340916283,1730075903875,500.0,0.00043944,30]
[340916284,1730075904157,500.0,0.00043944,30]
[340916285,1730075904374,500.0,0.00043944,30]
[340916286,1730075904632,500.0,0.00043944,30]
[340916287,1730075904731,500.0,0.00043944,30]
[340916288,1730075904759,500.0,0.00043944,30]
[340916289,1730075904885,500.0,0.00043944,30]
[340916290,1730075904993,500.0,0.00043944,30]
[340916291,1730075905021,582.5799204,0.00043944,30]
[340916292,1730075905279,500.0,0.00043944,30]
[340916293,1730075905307,500.0,0.00043944,30]
[340916294,1730075905431,500.0,0.00043944,30]
[340916295,1730075905500,500.0,0.00043944,30]
[340916296,1730075905704,500.0,0.00043944,30]
[340916297,1730075905763,500.0,0.00043944,30]
[340916298,1730075906144,500.0,0.00043944,30]
[340916299,1730075906176,500.0,0.00043944,30]
[340916300,1730075906263,500.0,0.00043944,30]
[340916301,1730075906291,500.0,0.00043944,30]
[340916302,1730075906525,500.0,0.00043944,30]
[340916303,1730075906583,500.0,0.00043944,30]
[340916304,1730075906843,500.0,0.00043944,30]
[340916305,1730075906872,344.13341743,0.00043944,30]
[340916306,1730075907088,500.0,0.00043944,30]
[340916307,1730075907123,500.0,0.00043944,30]
[340916308,1730075907363,500.0,0.00043944,30]
[340916309,1730075907399,500.0,0.00043944,30]
[340916310,1730075907700,500.0,0.00043944,30]
[340916311,1730075907958,500.0,0.00043944,30]
[340916312,1730075907987,500.0,0.00043944,30]
[340916313,1730075908244,500.0,0.00043944,30]
[340916314,1730075908276,500.0,0.00043944,30]
[340916315,1730075908504,500.0,0.00043944,30]
[340916316,1730075908531,500.0,0.00043944,30]
[340916317,1730075908773,500.0,0.00043944,30]
[340916318,1730075908802,647.97202154,0.00043944,30]
[340916319,1730075909045,500.0,0.00043944,30]
[340916320,1730075909073,500.0,0.00043944,30]
[340916321,1730075909308,500.0,0.00043944,30]
[340916322,1730075909339,425.56,0.00043944,30]
[340916323,1730075909506,500.0,0.00043944,30]
[340916324,1730075909609,500.0,0.00043944,30]
[340916325,1730075909863,500.0,0.00043944,30]
[340916326,1730075909908,500.0,0.00043944,30]
[340916327,1730075910188,500.0,0.00043944,30]
[340916328,1730075910218,500.0,0.00043944,30]
[340916329,1730075910456,500.0,0.00043944,30]
[340916330,1730075910484,500.0,0.00043944,30]
[340916331,1730075910732,500.0,0.00043944,30]
[340916332,1730075910760,500.0,0.00043944,30]
[340916333,1730075910891,500.0,0.00043944,30]
[340916334,1730075911008,500.0,0.00043944,30]
[340916335,1730075911036,500.0,0.00043944,30]
[340916336,1730075911169,500.0,0.00043944,30]
[340916337,1730075911261,500.0,0.00043944,30]
[340916338,1730075911300,427.94288787,0.00043944,30]
[340916339,1730075911447,500.0,0.00043944,30]
[340916340,1730075911501,500.0,0.00043944,30]
[340916341,1730075911532,500.0,0.00043944,30]
[340916342,1730075911716,500.0,0.00043944,30]
[340916343,1730075911761,500.0,0.00043944,30]
[340916344,1730075911791,500.0,0.00043944,30]
[340916345,1730075911979,500.0,0.00043944,30]
[340916346,1730075912015,500.0,0.00043944,30]
[340916347,1730075912043,500.0,0.00043944,30]
[340916348,1730075912242,500.0,0.00043944,30]
[340916349,1730075912275,500.0,0.00043944,30]
[340916350,1730075912398,500.0,0.00043944,30]
[340916351,1730075912533,500.0,0.00043944,30]
[340916352,1730075912597,500.0,0.00043944,30]
[340916353,1730075912673,500.0,0.00043944,30]
[340916354,1730075912790,500.0,0.00043944,30]
[340916355,1730075912886,500.0,0.00043944,30]
[340916356,1730075912934,500.0,0.00043944,30]
[340916357,1730075913053,200.93813507,0.00043944,30]
[340916358,1730075913153,500.0,0.00043944,30]
[340916359,1730075913212,500.0,0.00043944,30]
[340916360,1730075913245,500.0,0.00043944,30]
[340916361,1730075913415,601.06,0.00043944,30]
[340916362,1730075913485,500.0,0.00043944,30]
[340916363,1730075913512,386.8615954,0.00043944,30]
[340916364,1730075913738,500.0,0.00043944,30]
[340916365,1730075914028,500.0,0.00043944,30]
[340916366,1730075914304,500.0,0.00043944,30]
[340916367,1730075914490,500.0,0.00043944,30]
[340916368,1730075914772,500.0,0.00043944,30]
[340916369,1730075914972,500.0,0.00043944,30]
[340916370,1730075915037,500.0,0.00043944,30]
[340916371,1730075915228,500.0,0.00043944,30]
[340916372,1730075915555,500.0,0.00043944,30]
[340916373,1730075915584,500.0,0.00043944,30]
[340916374,1730075915613,500.0,0.00043944,30]
[340916375,1730075915715,500.0,0.00043944,30]
[340916376,1730075915742,500.0,0.00043944,30]
[340916377,1730075915882,500.0,0.00043944,30]
[340916378,1730075915967,500.0,0.00043944,30]
[340916379,1730075915995,500.0,0.00043944,30]
[340916380,1730075916156,500.0,0.00043944,30]
[340916381,1730075916193,500.0,0.00043944,30]
[340916382,1730075916234,500.0,0.00043944,30]
[340916383,1730075916266,500.0,0.00043944,30]
[340916384,1730075916422,300.33983825,0.00043944,30]
[340916385,1730075916454,500.0,0.00043944,30]
[340916386,1730075916511,500.0,0.00043944,30]
[340916387,1730075916545,500.0,0.00043944,30]
[340916388,1730075916700,500.0,0.00043944,30]
[340916389,1730075916811,500.0,0.00043944,30]
[340916390,1730075916840,500.0,0.00043944,30]
[340916391,1730075916955,315.9,0.00043944,30]
[340916392,1730075917073,500.0,0.00043944,30]
[340916393,1730075917145,500.0,0.00043944,30]
[340916394,1730075917414,500.0,0.00043944,30]
[340916395,1730075917446,500.0,0.00043944,30]
[340916396,1730075917676,500.0,0.00043944,30]
[340916397,1730075917704,235.30053387,0.00043944,30]
[340916398,1730075917949,500.0,0.00043944,30]
[340916399,1730075918228,500.0,0.00043944,30]
[340916400,1730075918568,500.0,0.00043944,30]
[340916401,1730075918845,500.0,0.00043944,30]
[340916402,1730075919101,500.0,0.00043944,30]
[340916403,1730075919362,603.3,0.00043944,30]
[340916404,1730075920104,500.0,0.00043944,30]
[340916405,1730075920389,500.0,0.00043944,30]
[340916406,1730075921041,500.0,0.00043941,30]
[340916407,1730075921384,500.0,0.00043941,30]
[340916408,1730075921418,500.0,0.00043941,30]
[340916409,1730075921680,500.0,0.00043941,30]
[340916410,1730075921776,248.2844824,0.00043941,30]
[340916411,1730075921983,500.0,0.00043941,30]
[340916412,1730075922243,500.0,0.00043941,30]
[340916413,1730075922537,500.0,0.00043941,30]
[340916414,1730075922820,500.0,0.00043941,30]
[340916415,1730075923084,500.0,0.00043941,30]
[340916416,1730075923370,500.0,0.00043941,30]
[340916417,1730075923677,500.0,0.00043941,30]
[340916418,1730075923952,500.0,0.00043941,30]
[340916419,1730075924087,504.0,0.00043941,30]
[340916420,1730075924220,500.0,0.00043941,30]
[340916421,1730075924524,500.0,0.00043941,30]
[340916422,1730075924775,500.0,0.00043941,30]
[340916423,1730075925144,500.0,0.00043941,30]
[340916424,1730075925411,500.0,0.00043941,30]
[340916425,1730075925489,519.125,0.00043941,30]
[340916426,1730075925792,500.0,0.00043941,30]
[340916427,1730075925822,500.0,0.00043941,30]
[340916428,1730075925928,500.0,0.00043941,30]
[340916429,1730075925991,763.61,0.00043941,30]
[340916430,1730075926224,500.0,0.00043941,30]
[340916431,1730075926252,763.61,0.00043941,30]
[340916432,1730075926498,500.0,0.00043941,30]
[340916433,1730075926656,763.61,0.00043941,30]
[340916434,1730075926799,500.0,0.00043941,30]
[340916435,1730075926910,763.61,0.00043941,30]
[340916436,1730075927056,617.6,0.00043941,30]
[340916437,1730075927114,500.0,0.00043941,30]
[340916438,1730075927163,763.61,0.00043941,30]
[340916439,1730075927387,500.0,0.00043941,30]
[340916440,1730075927427,763.61,0.00043941,30]
[340916441,1730075927651,500.0,0.00043941,30]
[340916442,1730075927681,763.61,0.00043941,30]
[340916443,1730075927768,500.0,0.00043941,30]
[340916444,1730075927942,763.61,0.00043941,30]
[340916445,1730075927971,500.0,0.00043941,30]
[340916446,1730075928025,500.0,0.00043941,30]
[340916447,1730075928215,763.61,0.00043941,30]
[340916448,1730075928245,500.0,0.00043941,30]
[340916449,1730075928273,500.0,0.00043941,30]
[340916450,1730075928477,763.61,0.00043941,30]
[340916451,1730075928506,500.0,0.00043941,30]
[340916452,1730075928534,500.0,0.00043941,30]
[340916453,1730075928759,763.61,0.00043941,30]
[340916454,1730075928825,500.0,0.00043941,30]
[340916455,1730075928855,500.0,0.00043941,30]
[340916456,1730075928994,763.61,0.00043941,30]
[340916457,1730075929026,500.0,0.00043941,30]
[340916458,1730075929054,416.85048362,0.00043941,30]
[340916459,1730075929249,763.61,0.00043941,30]
[340916460,1730075929279,500.0,0.00043941,30]
[340916461,1730075929307,563.25,0.00043941,30]
[340916462,1730075929528,763.61,0.00043941,30]
[340916463,1730075929639,500.0,0.00043941,30]
[340916464,1730075929667,563.25,0.00043941,30]
[340916465,1730075929814,763.61,0.00043941,30]
[340916466,1730075929925,563.25,0.00043941,30]
[340916467,1730075930064,763.61,0.00043941,30]
[340916468,1730075930160,500.0,0.00043941,30]
[340916469,1730075930227,500.0,0.00043941,30]
[340916470,1730075930342,763.61,0.00043941,30]
[340916471,1730075930543,563.25,0.00043941,30]
[340916472,1730075930593,763.61,0.00043941,30]
[340916473,1730075930773,500.0,0.00043941,30]
[340916474,1730075930834,563.25,0.00043941,30]
[340916475,1730075930969,763.61,0.00043941,30]
[340916476,1730075930999,516.72827192,0.00043941,30]
[340916477,1730075931097,563.25,0.00043941,30]
[340916478,1730075931294,763.61,0.00043941,30]
[340916479,1730075931387,563.25,0.00043941,30]
[340916480,1730075931415,500.0,0.00043941,30]
[340916481,1730075931564,763.61,0.00043941,30]
[340916482,1730075931647,563.25,0.00043941,30]
[340916483,1730075931704,500.0,0.00043941,30]
[340916484,1730075931820,763.61,0.00043941,30]
[340916485,1730075931911,563.25,0.00043941,30]
[340916486,1730075931978,500.0,0.00043941,30]
[340916487,1730075932085,763.61,0.00043941,30]
[340916488,1730075932165,563.25,0.00043941,30]
[340916489,1730075932253,500.0,0.00043941,30]
[340916490,1730075932345,763.84817467,0.00043941,30]
[340916491,1730075932432,563.25,0.00043941,30]
[340916492,1730075932520,500.0,0.00043941,30]
[340916493,1730075932785,500.0,0.00043941,30]
[340916494,1730075933031,500.0,0.00043941,30]
[340916495,1730075933059,563.25,0.00043941,30]
[340916496,1730075933300,278.02025519,0.00043941,30]
[340916497,1730075933328,563.25,0.00043941,30]
[340916498,1730075933584,563.25,0.00043941,30]
[340916499,1730075933846,563.25,0.00043941,30]
[340916500,1730075934128,563.25,0.00043941,30]
[340916501,1730075934388,563.25,0.00043941,30]
[340916502,1730075934655,563.25,0.00043941,30]
[340916503,1730075934918,563.25,0.00043941,30]
[340916504,1730075935191,563.25,0.00043941,30]
[340916505,1730075935391,577.19910951,0.00043941,30]
[340916506,1730075935451,500.0,0.00043941,30]
[340916507,1730075935484,563.25,0.00043941,30]
[340916508,1730075935698,267.40251445,0.00043941,30]
[340916509,1730075935957,563.25,0.00043941,30]
[340916510,1730075936097,563.25,0.00043941,30]
[340916511,1730075936361,563.39,0.00043941,30]
[340916512,1730075938394,500.0,0.00043941,30]
[340916513,1730075938727,425.88,0.00043941,30]
[340916514,1730075939327,500.0,0.00043941,30]
[340916515,1730075939676,500.0,0.00043941,30]
[340916516,1730075939904,404.51719543,0.00043941,30]
[340916517,1730075940021,500.0,0.00043941,30]
[340916518,1730075940288,500.0,0.00043941,30]
[340916519,1730075940535,500.0,0.00043941,30]
[340916520,1730075940819,500.0,0.00043941,30]
[340916521,1730075941212,500.0,0.00043941,30]
[340916522,1730075941483,500.0,0.00043941,30]
[340916523,1730075941737,500.0,0.00043941,30]
[340916524,1730075942060,500.0,0.00043941,30]
[340916525,1730075942384,500.0,0.00043941,30]
[340916526,1730075942691,500.0,0.00043941,30]
[340916527,1730075942960,500.0,0.00043941,30]
[340916528,1730075943228,500.0,0.00043941,30]
[340916529,1730075943521,500.0,0.00043941,30]
[340916530,1730075943662,500.0,0.00043941,30]
[340916531,1730075943784,500.0,0.00043941,30]
[340916532,1730075943909,500.0,0.00043941,30]
[340916533,1730075944075,500.0,0.00043941,30]
[340916534,1730075944173,500.0,0.00043941,30]
[340916535,1730075944336,469.46210933,0.00043941,30]
[340916536,1730075944432,500.0,0.00043941,30]
[340916537,1730075944692,500.0,0.00043941,30]
[340916538,1730075944946,500.0,0.00043941,30]
[340916539,1730075945214,629.66,0.00043941,30]
[340916540,1730075945568,500.0,0.00043941,30]
[340916541,1730075945891,500.0,0.00043941,30]
[340916542,1730075946296,500.0,0.00043941,30]
[340916543,1730075946325,500.0,0.00043941,30]
[340916544,1730075946424,342.91854208,0.00043941,30]
[340916545,1730075946462,500.0,0.00043941,30]
[340916546,1730075946734,298.82842245,0.00043941,30]
[340916547,1730075947713,500.0,0.00043941,30]
[340916548,1730075947970,500.0,0.00043941,30]
[340916549,1730075948233,500.0,0.00043941,30]
[340916550,1730075948785,500.0,0.00043941,30]
[340916551,1730075948924,323.18101618,0.00043941,30]
[340916552,1730075949340,500.0,0.00043941,30]
[340916553,1730075949605,500.0,0.00043941,30]
[340916554,1730075949892,500.0,0.00043941,30]
[340916555,1730075950160,500.0,0.00043941,30]
[340916556,1730075950558,500.0,0.00043941,30]
[340916557,1730075950833,500.0,0.00043941,30]
[340916558,1730075951199,500.0,0.00043941,30]
[340916559,1730075951460,500.0,0.00043941,30]
[340916560,1730075951734,500.0,0.00043941,30]
[340916561,1730075951986,500.0,0.00043941,30]
[340916562,1730075952363,500.0,0.00043941,30]
[340916563,1730075952525,500.0,0.00043941,30]
[340916564,1730075952678,500.0,0.00043941,30]
[340916565,1730075952785,500.0,0.00043941,30]
[340916566,1730075952943,500.0,0.00043941,30]
[340916567,1730075952971,500.0,0.00043941,30]
[340916568,1730075953049,500.0,0.00043941,30]
[340916569,1730075953234,500.0,0.00043941,30]
[340916570,1730075953262,500.0,0.00043941,30]
[340916571,1730075953290,500.0,0.00043941,30]
[340916572,1730075953318,500.0,0.00043941,30]
[340916573,1730075953345,603.58695513,0.00043941,30]
[340916574,1730075953395,500.0,0.00043941,30]
[340916575,1730075953504,500.0,0.00043941,30]
[340916576,1730075953532,607.72025693,0.00043941,30]
[340916577,1730075953559,500.0,0.00043941,30]
[340916578,1730075953590,500.0,0.00043941,30]
[340916579,1730075953801,500.0,0.00043941,30]
[340916580,1730075953831,500.0,0.00043941,30]
[340916581,1730075953860,500.0,0.00043941,30]
[340916582,1730075953898,500.0,0.00043941,30]
[340916583,1730075953937,500.0,0.00043941,30]
[340916584,1730075954077,380.39309765,0.00043941,30]